[Event "Kuwait Championship Stage-I 2024"]
[Site "Qadsiya"]
[Date "2024.01.28"]
[Round "6.3"]
[White "Alabdaljader, Mohammed"]
[Black "Hussain, Hashem"]
[Result "0-1"]
[ECO "B23"]
[WhiteElo "1353"]
[BlackElo "1642"]
[Annotator "NA RC"]
[PlyCount "72"]
[EventDate "2024.01.22"]
[EventType "swiss"]
[EventCountry "KUW"]
[SourceTitle "playchess.com"]
[Source "ChessBase"]
[SourceQuality "1"]
[TimeControl "5400+30"]

1. e4 {[%emt 0:00:15]} c5 {[%emt 0:00:42]} 2. Nc3 {[%emt 0:00:13]} Nc6 {[%emt 0:00:22]} 3. f4 {[%emt 0:00:20]} e6 {[%emt 0:03:38]} 4. Nf3 {[%emt 0:00:31]} d5 {[%emt 0:00:38]} 5. Bb5 {[%emt 0:00:19]} a6 {[%emt 0:02:33]} 6. Bxc6+ {[%emt 0:00:09]} bxc6 {[%emt 0:00:18]} 7. O-O {[%emt 0:00:15]} Nf6 {[%emt 0:02:29]} 8. d3 {[%emt 1:32:28]} Be7 {[%emt 0:00:47]} 9. b3 {[%emt 0:00:00]} O-O {[%emt 0:05:52]} 10. Qe1 {[%emt 0:00:00]} a5 {[%emt 0:02:43]} 11. Ba3 {[%emt 0:00:00]} Ba6 {[%emt 0:09:20]} 12. Rd1 {[%emt 0:00:00]} Qc7 {[%emt 0:08:29]} 13. e5 {[%emt 0:00:00]} Nd7 {[%emt 0:02:08]} 14. Na4 {[%emt 0:00:00]} Bb5 {[%emt 0:07:46]} 15. Bc1 {[%emt 0:00:00]} c4 {[%emt 0:07:32]} 16. Nc3 {[%emt 0:00:00]} Ba6 {[%emt 0:09:00]} 17. Be3 {[%emt 0:00:00]} cxd3 {[%emt 0:01:14]} 18. cxd3 {[%emt 0:00:00]} Bb4 {[%emt 0:03:06]} 19. a3 {[%emt 0:00:00]} Bxa3 {[%emt 0:01:00]} 20. Qh4 {[%emt 0:00:00]} Bc5 {[%emt 0:05:47]} 21. Bxc5 {[%emt 0:00:00]} Nxc5 {[%emt 0:00:08]} 22. Ng5 {[%emt 0:00:00]} h6 {[%emt 0:00:52]} 23. Rf3 {[%emt 0:00:00]} Rab8 {[%emt 0:06:06]} 24. Rg3 {[%emt 0:00:00]} Nxd3 {[%emt 0:05:51]} 25. Nh3 {[%emt 0:00:00]} Kh8 {[%emt 0:04:50]} 26. Rg5 {[%emt 0:00:00]} f6 {[%emt 0:03:28]} 27. Rg6 {[%emt 0:00:00]} fxe5 {[%emt 0:01:18]} 28. Rxe6 {[%emt 0:00:00]} Nxf4 {[%emt 0:01:02]} 29. Re7 {[%emt 0:00:00]} Nxh3+ {[%emt 0:00:17]} 30. gxh3 {[%emt 0:00:00]} Qb6+ {[%emt 0:00:30]} 31. Kh1 {[%emt 0:00:00]} Qe3 {[%emt 0:00:21]} 32. Rxg7 {[%emt 0:12:00]} Kxg7 {[%emt 0:02:05]} 33. Qe7+ {[%emt 0:00:00]} Rf7 {[%emt 0:00:18]} 34. Qh4 {[%emt 0:00:00]} Kh7 {[%emt 0:01:01]} 35. b4 {[%emt 0:00:00]} Qf3+ {[%emt 0:00:10]} 36. Kg1 {[%emt 0:00:00]} Rg8+ {[%emt 0:00:06]} 0-1

[Event "Kuwait Championship Stage-I 2024"]
[Site "Qadsiya"]
[Date "2024.01.28"]
[Round "6.4"]
[White "Alrefae, Ahmad"]
[Black "Aldaihani, Turki"]
[Result "0-1"]
[ECO "B02"]
[WhiteElo "1338"]
[BlackElo "1475"]
[Annotator "NA RC"]
[PlyCount "82"]
[EventDate "2024.01.22"]
[EventType "swiss"]
[EventCountry "KUW"]
[SourceTitle "playchess.com"]
[Source "ChessBase"]
[SourceQuality "1"]
[TimeControl "5400+30"]

1. e4 {[%emt 0:00:01]} Nf6 {[%emt 0:11:08]} 2. e5 {[%emt 0:00:45]} Ng8 {[%emt 0:00:32]} 3. d4 {[%emt 0:01:57]} d5 {[%emt 0:00:29]} 4. c3 {[%emt 0:01:50]} Bf5 {[%emt 0:01:17]} 5. g4 {[%emt 0:01:38]} Bd7 {[%emt 0:00:53]} 6. Bd3 {[%emt 0:02:23]} c5 {[%emt 0:02:03]} 7. dxc5 {[%emt 0:01:46]} Qc7 {[%emt 0:00:19]} 8. Be3 {[%emt 0:07:08]} Qxe5 {[%emt 0:07:24]} 9. Nf3 {[%emt 0:00:54]} Qc7 {[%emt 0:00:37]} 10. Bd4 {[%emt 0:13:42]} Bxg4 {[%emt 0:01:58]} 11. Rg1 {[%emt 0:00:40]} Bxf3 {[%emt 0:03:10]} 12. Qxf3 {[%emt 0:00:07]} Qxh2 {[%emt 0:02:02]} 13. Rg3 {[%emt 0:02:55]} e6 {[%emt 0:02:32]} 14. Na3 {[%emt 0:03:26]} a6 {[%emt 0:02:00]} 15. Nc4 {[%emt 0:08:55]} Nd7 {[%emt 0:04:29]} 16. Bxg7 {[%emt 0:11:31]} dxc4 {[%emt 0:07:35]} 17. Bxh8 {[%emt 0:00:21]} Ne7 {[%emt 0:03:05]} 18. Bxc4 {[%emt 0:02:11]} Ng6 {[%emt 0:09:41]} 19. Bd4 {[%emt 0:03:29]} Bxc5 {[%emt 0:04:31]} 20. Bxc5 {[%emt 0:03:58]} Nxc5 {[%emt 0:00:31]} 21. O-O-O {[%emt 0:01:42]} Qh4 {[%emt 0:01:54]} 22. Rd4 {[%emt 0:01:09]} Qe7 {[%emt 0:00:31]} 23. Qe2 {[%emt 0:04:44]} Kf8 {[%emt 0:01:02]} 24. b4 {[%emt 0:05:33]} Na4 {[%emt 0:01:42]} 25. Qd1 {[%emt 0:02:26]} b5 {[%emt 0:01:22]} 26. Bb3 {[%emt 0:04:39]} Nb6 {[%emt 0:00:46]} 27. Qh5 {[%emt 0:01:54]} f6 {[%emt 0:02:53]} 28. Qc5 {[%emt 0:00:56]} e5 {[%emt 0:00:54]} 29. Rd6 {[%emt 0:01:11]} Nd7 {[%emt 0:03:02]} 30. Rxf6+ {[%emt 0:00:11]} Nxf6 {[%emt 0:00:11]} 31. Qc6 {[%emt 0:01:16]} Rd8 {[%emt 0:02:00]} 32. Qxa6 {[%emt 0:00:50]} Nf4 {[%emt 0:01:02]} 33. Qxb5 {[%emt 0:00:41]} Qd6 {[%emt 0:02:54]} 34. Qc4 {[%emt 0:01:49]} Qd2+ {[%emt 0:02:13]} 35. Kb1 {[%emt 0:00:03]} Qe1+ {[%emt 0:00:49]} 36. Kb2 {[%emt 0:00:28]} Qxf2+ {[%emt 0:00:23]} 37. Ka3 {[%emt 0:00:47]} Ra8+ {[%emt 0:00:09]} 38. Ba4 {[%emt 0:00:04]} Qxg3 {[%emt 0:00:55]} 39. Qc5+ {[%emt 0:00:07]} Kf7 {[%emt 0:01:14]} 40. Qc7+ {[%emt 0:01:07]} Kg6 {[%emt 0:00:31]} 41. Qxe5 {[%emt 0:00:09]} Ne2 {[%emt 0:01:14]} 0-1

[Event "Kuwait Championship Stage-I 2024"]
[Site "Qadsiya"]
[Date "2024.01.28"]
[Round "6.5"]
[White "Alghanim, Faisal"]
[Black "Alenezi, Hamad"]
[Result "0-1"]
[ECO "B12"]
[WhiteElo "1280"]
[BlackElo "1419"]
[Annotator "NA RC"]
[PlyCount "125"]
[EventDate "2024.01.22"]
[EventType "swiss"]
[EventCountry "KUW"]
[SourceTitle "playchess.com"]
[Source "ChessBase"]
[SourceQuality "1"]
[TimeControl "5400+30"]

1. e4 {[%emt 0:00:01]} c6 {[%emt 0:02:26]} 2. d4 {[%emt 0:00:04]} d5 {[%emt 0:00:13]} 3. e5 {[%emt 0:00:03]} e6 {[%emt 0:00:36]} 4. c3 {[%emt 0:00:04]} c5 {[%emt 0:00:35]} 5. Nf3 {[%emt 0:00:11]} Nc6 {[%emt 0:01:01]} 6. Bb5 {[%emt 0:00:19]} a6 {[%emt 0:01:24]} 7. Bxc6+ {[%emt 0:02:05]} bxc6 {[%emt 0:00:20]} 8. O-O {[%emt 0:01:19]} Nh6 {[%emt 0:03:59]} 9. Bxh6 {[%emt 0:04:35]} gxh6 {[%emt 0:00:11]} 10. dxc5 {[%emt 0:03:54]} Bxc5 {[%emt 0:00:26]} 11. Qd2 {[%emt 0:01:14]} Qb6 {[%emt 0:08:35]} 12. Qxh6 {[%emt 0:10:09]} Be7 {[%emt 0:12:07]} 13. Nd4 {[%emt 0:12:46]} c5 {[%emt 0:05:40]} 14. Nf5 {[%emt 0:07:45]} Qc7 {[%emt 0:13:30]} 15. Nxe7 {[%emt 0:09:15]} Qxe7 {[%emt 0:00:31]} 16. Qg7 {[%emt 0:00:46]} Rf8 {[%emt 0:04:49]} 17. Qxh7 {[%emt 0:03:07]} Bb7 {[%emt 0:00:21]} 18. Nd2 {[%emt 0:04:45]} O-O-O {[%emt 0:00:57]} 19. Rad1 {[%emt 0:08:37]} Rh8 {[%emt 0:02:24]} 20. Qg7 {[%emt 0:29:31]} Rdg8 {[%emt 0:06:53]} 21. Qf6 {[%emt 0:00:00]} Qf8 {[%emt 0:03:38]} 22. g3 {[%emt 0:00:00]} Rg6 {[%emt 0:01:47]} 23. Qf4 {[%emt 0:00:00]} Qg7 {[%emt 0:05:30]} 24. f3 {[%emt 0:00:00]} Qh7 {[%emt 0:03:32]} 25. h4 {[%emt 0:00:00]} Rxg3+ {[%emt 0:05:00]} 26. Qxg3 {[%emt 0:00:00]} Rg8 {[%emt 0:00:05]} 27. Qxg8+ {[%emt 0:00:00]} Qxg8+ {[%emt 0:00:02]} 28. Kh2 {[%emt 0:00:00]} Qh8 {[%emt 0:00:23]} 29. Rg1 {[%emt 0:00:00]} Qxh4+ {[%emt 0:00:43]} 30. Kg2 {[%emt 0:00:00]} Qg5+ {[%emt 0:00:57]} 31. Kf2 {[%emt 0:00:25]} Qxe5 {[%emt 0:00:16]} 32. Nb3 {[%emt 0:01:02]} Qh2+ {[%emt 0:04:37]} 33. Rg2 {[%emt 0:00:53]} Qh4+ {[%emt 0:00:11]} 34. Rg3 {[%emt 0:00:25]} Qh7 {[%emt 0:01:51]} 35. Rd2 {[%emt 0:02:47]} Qh2+ {[%emt 0:01:33]} 36. Rg2 {[%emt 0:00:04]} Qh4+ {[%emt 0:00:06]} 37. Rg3 {[%emt 0:01:07]} d4 {[%emt 0:01:48]} 38. cxd4 {[%emt 0:01:12]} cxd4 {[%emt 0:02:34]} 39. Rxd4 {[%emt 0:00:27]} Qh2+ {[%emt 0:00:44]} 40. Rg2 {[%emt 0:00:10]} Qh8 {[%emt 0:02:18]} 41. Rd2 {[%emt 0:01:03]} Bd5 {[%emt 0:00:52]} 42. Rc2+ {[%emt 0:00:43]} Kb8 {[%emt 0:00:22]} 43. Kg1 {[%emt 0:00:38]} Bxf3 {[%emt 0:01:38]} 44. Rh2 {[%emt 0:00:29]} Qg7+ {[%emt 0:00:33]} 45. Kf1 {[%emt 0:00:22]} Bd5 {[%emt 0:00:54]} 46. Nc5 {[%emt 0:00:22]} Qf6+ {[%emt 0:00:33]} 47. Ke1 {[%emt 0:00:20]} Ka7 {[%emt 0:01:21]} 48. Nd7 {[%emt 0:00:29]} Qf4 {[%emt 0:00:54]} 49. Rhf2 {[%emt 0:00:35]} Qe3+ {[%emt 0:00:33]} 50. Rfe2 {[%emt 0:00:22]} Qg3+ {[%emt 0:00:28]} 51. Rf2 {[%emt 0:00:31]} Qg1+ {[%emt 0:00:34]} 52. Rf1 {[%emt 0:00:58]} Qe3+ {[%emt 0:00:54]} 53. Re2 {[%emt 0:00:19]} Qg3+ {[%emt 0:00:33]} 54. Rff2 {[%emt 0:00:27]} Bxa2 {[%emt 0:01:16]} 55. Rc2 {[%emt 0:00:26]} Bd5 {[%emt 0:00:26]} 56. Rce2 {[%emt 0:00:46]} Bc4 {[%emt 0:00:57]} 57. Rc2 {[%emt 0:00:37]} Qg1+ {[%emt 0:00:35]} 58. Kd2 {[%emt 0:00:26]} Qxf2+ {[%emt 0:00:08]} 59. Kc3 {[%emt 0:00:15]} Qf4 {[%emt 0:00:30]} 60. b3 {[%emt 0:00:45]} Bd5 {[%emt 0:00:20]} 61. Kb2 {[%emt 0:00:12]} Qd4+ {[%emt 0:00:23]} 62. Kb1 {[%emt 0:00:12]} Be4 {[%emt 0:00:05]} 63. Ka2 {[%emt 0:01:41]} 0-1

[Event "Kuwait Championship Stage-I 2024"]
[Site "Qadsiya"]
[Date "2024.01.28"]
[Round "6.6"]
[White "Al-Hajiri, Bader"]
[Black "Aljadi, Hussain"]
[Result "1-0"]
[ECO "C43"]
[WhiteElo "1890"]
[BlackElo "1419"]
[Annotator "NA RC"]
[PlyCount "67"]
[EventDate "2024.01.22"]
[EventType "swiss"]
[EventCountry "KUW"]
[SourceTitle "playchess.com"]
[Source "ChessBase"]
[SourceQuality "1"]
[TimeControl "5400+30"]

1. e4 {[%emt 0:00:03]} e5 {[%emt 0:00:48]} 2. Nf3 {[%emt 0:00:50]} Nf6 {[%emt 0:01:04]} 3. d4 {[%emt 0:01:57]} Nxe4 {[%emt 0:00:33]} 4. dxe5 {[%emt 0:00:15]} d5 {[%emt 0:00:17]} 5. Bd3 {[%emt 0:00:12]} Nc5 {[%emt 0:04:47]} 6. Be2 {[%emt 0:00:50]} Be7 {[%emt 0:00:35]} 7. Nc3 {[%emt 0:00:26]} c6 {[%emt 1:25:56]} 8. O-O {[%emt 0:00:38]} O-O {[%emt 0:00:00]} 9. Nd4 {[%emt 0:03:11]} f6 {[%emt 0:00:00]} 10. exf6 {[%emt 0:09:04]} Bxf6 {[%emt 0:00:00]} 11. Be3 {[%emt 0:00:43]} Ne6 {[%emt 0:00:00]} 12. Qd2 {[%emt 0:01:50]} Nxd4 {[%emt 0:00:00]} 13. Bxd4 {[%emt 0:00:08]} Bf5 {[%emt 0:00:00]} 14. Bf3 {[%emt 0:04:14]} Bxd4 {[%emt 0:00:00]} 15. Qxd4 {[%emt 0:00:35]} Nd7 {[%emt 0:00:00]} 16. Rad1 {[%emt 0:09:43]} Bxc2 {[%emt 0:00:00]} 17. Rd2 {[%emt 0:00:23]} Bf5 {[%emt 0:00:00]} 18. Re1 {[%emt 1:04:28]} Qf6 {[%emt 0:00:00]} 19. Qb4 {[%emt 0:00:00]} Ne5 {[%emt 0:00:00]} 20. Bxd5+ {[%emt 0:00:00]} cxd5 {[%emt 0:00:00]} 21. Nxd5 {[%emt 0:00:00]} Nf3+ {[%emt 0:00:00]} 22. gxf3 {[%emt 0:00:00]} Qg5+ {[%emt 0:00:00]} 23. Kh1 {[%emt 0:00:00]} Bh3 {[%emt 0:00:00]} 24. Rg1 {[%emt 0:00:00]} Qe5 {[%emt 0:00:00]} 25. Qh4 {[%emt 0:00:00]} Rxf3 {[%emt 0:00:00]} 26. Ne7+ {[%emt 0:00:00]} Kf7 {[%emt 0:00:00]} 27. Rd5 {[%emt 0:00:00]} Qf6 {[%emt 0:00:00]} 28. Qxh7 {[%emt 0:00:00]} Qh6 {[%emt 0:01:17]} 29. Qc2 {[%emt 0:00:00]} Re8 {[%emt 0:06:20]} 30. Ng6 {[%emt 0:00:00]} Be6 {[%emt 0:02:01]} 31. Qc7+ {[%emt 0:00:00]} Kg8 {[%emt 0:00:08]} 32. Rd8 {[%emt 0:00:00]} Rxd8 {[%emt 0:00:32]} 33. Qxd8+ {[%emt 0:00:00]} Kh7 {[%emt 0:00:15]} 34. Qh8# {[%emt 0:00:00]} 1-0

[Event "Kuwait Championship Stage-I 2024"]
[Site "Qadsiya"]
[Date "2024.01.28"]
[Round "6.7"]
[White "Almuhaini, Abdulaziz"]
[Black "Hashem, Khaled"]
[Result "0-1"]
[ECO "C56"]
[WhiteElo "1374"]
[BlackElo "1868"]
[Annotator "NA RC"]
[PlyCount "84"]
[EventDate "2024.01.22"]
[EventType "swiss"]
[EventCountry "KUW"]
[SourceTitle "playchess.com"]
[Source "ChessBase"]
[SourceQuality "1"]
[TimeControl "5400+30"]

1. e4 {[%emt 0:00:39]} e5 {[%emt 0:00:37]} 2. Nf3 {[%emt 0:00:41]} Nc6 {[%emt 0:00:03]} 3. d4 {[%emt 0:00:39]} exd4 {[%emt 0:00:05]} 4. Bc4 {[%emt 0:00:06]} Nf6 {[%emt 0:00:04]} 5. e5 {[%emt 0:01:58]} d5 {[%emt 0:00:01]} 6. Bb5 {[%emt 0:00:42]} Ne4 {[%emt 0:00:01]} 7. Nxd4 {[%emt 0:00:45]} Bd7 {[%emt 0:00:02]} 8. Bxc6 {[%emt 0:00:36]} bxc6 {[%emt 0:00:04]} 9. O-O {[%emt 0:04:57]} Bc5 {[%emt 0:00:08]} 10. Be3 {[%emt 0:06:12]} O-O {[%emt 0:05:04]} 11. Nd2 {[%emt 0:03:44]} f5 {[%emt 0:04:24]} 12. f4 {[%emt 0:11:42]} Qe7 {[%emt 0:04:30]} 13. Nxe4 {[%emt 0:07:09]} fxe4 {[%emt 0:01:11]} 14. Qe2 {[%emt 0:12:31]} Rab8 {[%emt 0:02:34]} 15. c3 {[%emt 0:02:35]} Bxd4 {[%emt 0:08:10]} 16. Bxd4 {[%emt 0:03:10]} c5 {[%emt 0:00:35]} 17. Be3 {[%emt 0:01:14]} Bb5 {[%emt 0:01:46]} 18. Qf2 {[%emt 0:00:58]} d4 {[%emt 0:00:42]} 19. cxd4 {[%emt 0:01:14]} Bxf1 {[%emt 0:00:06]} 20. Rxf1 {[%emt 0:01:15]} Qe6 {[%emt 0:16:53]} 21. f5 {[%emt 0:14:06]} Qxa2 {[%emt 0:01:13]} 22. f6 {[%emt 0:07:28]} Rxb2 {[%emt 0:09:22]} 23. Qg3 {[%emt 0:05:03]} g6 {[%emt 0:10:45]} 24. Qg4 {[%emt 0:02:49]} Rb1 {[%emt 0:11:37]} 25. Qxe4 {[%emt 0:01:00]} Rxf1+ {[%emt 0:01:10]} 26. Kxf1 {[%emt 0:00:14]} cxd4 {[%emt 0:00:34]} 27. Qxd4 {[%emt 0:05:36]} Rb8 {[%emt 0:04:15]} 28. Bf2 {[%emt 0:03:09]} Rb1+ {[%emt 0:00:35]} 29. Be1 {[%emt 0:00:11]} Qa6+ {[%emt 0:00:07]} 30. Kf2 {[%emt 0:00:24]} Qb6 {[%emt 0:00:06]} 31. Bc3 {[%emt 0:00:57]} Kf7 {[%emt 0:01:13]} 32. h4 {[%emt 0:00:55]} Rb3 {[%emt 0:01:04]} 33. Ke2 {[%emt 0:01:28]} Qxd4 {[%emt 0:00:08]} 34. Bxd4 {[%emt 0:00:01]} a5 {[%emt 0:00:13]} 35. g4 {[%emt 0:01:17]} a4 {[%emt 0:01:26]} 36. h5 {[%emt 0:00:09]} a3 {[%emt 0:00:25]} 37. hxg6+ {[%emt 0:00:14]} hxg6 {[%emt 0:00:02]} 38. Kd2 {[%emt 0:00:56]} a2 {[%emt 0:00:14]} 39. Kc2 {[%emt 0:00:42]} Rb1 {[%emt 0:00:09]} 40. g5 {[%emt 0:00:24]} a1=Q {[%emt 0:00:40]} 41. Bxa1 {[%emt 0:00:08]} Rxa1 {[%emt 0:00:07]} 42. Kd3 {[%emt 0:00:06]} Ra4 {[%emt 0:00:08]} 0-1

[Event "Kuwait Championship Stage-I 2024"]
[Site "Qadsiya"]
[Date "2024.01.28"]
[Round "6.8"]
[White "Alasfour, Zaid"]
[Black "AlShourfaa, Hazaa"]
[Result "1-0"]
[ECO "C58"]
[WhiteElo "1188"]
[BlackElo "1701"]
[Annotator "NA RC"]
[PlyCount "109"]
[EventDate "2024.01.22"]
[EventType "swiss"]
[EventCountry "KUW"]
[SourceTitle "playchess.com"]
[Source "ChessBase"]
[SourceQuality "1"]
[TimeControl "5400+30"]

1. e4 {[%emt 0:00:02]} Nc6 {[%emt 0:07:23]} 2. Nf3 {[%emt 0:00:37]} e5 {[%emt 0:00:09]} 3. Bc4 {[%emt 0:00:11]} Nf6 {[%emt 0:00:42]} 4. Ng5 {[%emt 0:00:56]} d5 {[%emt 0:00:39]} 5. exd5 {[%emt 0:00:13]} Na5 {[%emt 0:00:05]} 6. Bb5+ {[%emt 0:00:13]} c6 {[%emt 0:00:01]} 7. dxc6 {[%emt 0:00:18]} bxc6 {[%emt 0:00:06]} 8. Bd3 {[%emt 0:01:33]} h6 {[%emt 0:00:39]} 9. Ne4 {[%emt 0:00:22]} Nd5 {[%emt 0:00:36]} 10. Be2 {[%emt 0:10:38]} Be7 {[%emt 0:07:03]} 11. Bg4 {[%emt 0:09:30]} O-O {[%emt 0:02:26]} 12. Bxc8 {[%emt 0:02:02]} Qxc8 {[%emt 0:00:50]} 13. d3 {[%emt 0:01:44]} f5 {[%emt 0:06:23]} 14. Nec3 {[%emt 0:02:49]} Nf6 {[%emt 0:00:45]} 15. O-O {[%emt 0:02:27]} f4 {[%emt 0:01:27]} 16. Ne4 {[%emt 0:03:01]} Nxe4 {[%emt 0:14:49]} 17. dxe4 {[%emt 0:00:31]} f3 {[%emt 0:00:03]} 18. Nd2 {[%emt 0:04:39]} fxg2 {[%emt 0:15:00]} 19. Kxg2 {[%emt 0:08:53]} Rf4 {[%emt 0:00:31]} 20. Qh5 {[%emt 0:06:22]} Bg5 {[%emt 0:23:19]} 21. Nf3 {[%emt 0:14:37]} Rg4+ {[%emt 0:00:35]} 22. Kh1 {[%emt 0:00:38]} Bxc1 {[%emt 0:00:08]} 23. Raxc1 {[%emt 0:01:57]} Nc4 {[%emt 0:08:45]} 24. Rg1 {[%emt 0:01:21]} Rxg1+ {[%emt 0:02:51]} 25. Rxg1 {[%emt 0:00:19]} Qe6 {[%emt 0:00:06]} 26. Qg6 {[%emt 0:02:35]} Qf7 {[%emt 0:03:38]} 27. Qxf7+ {[%emt 0:00:40]} Kxf7 {[%emt 0:00:02]} 28. b3 {[%emt 0:00:02]} Nd6 {[%emt 0:01:36]} 29. Nxe5+ {[%emt 0:00:22]} Kf6 {[%emt 0:00:04]} 30. Nxc6 {[%emt 0:04:12]} Nxe4 {[%emt 0:00:05]} 31. Kg2 {[%emt 0:00:50]} Rc8 {[%emt 0:00:34]} 32. Nxa7 {[%emt 0:01:43]} Rxc2 {[%emt 0:00:04]} 33. Kf3 {[%emt 0:01:35]} Nd2+ {[%emt 0:01:13]} 34. Ke3 {[%emt 0:03:42]} Rxa2 {[%emt 0:00:14]} 35. b4 {[%emt 0:02:05]} Rxa7 {[%emt 0:01:22]} 36. Kxd2 {[%emt 0:00:06]} Ra2+ {[%emt 0:00:24]} 37. Ke3 {[%emt 0:00:34]} Rb2 {[%emt 0:00:19]} 38. Rg4 {[%emt 0:00:22]} Rb3+ {[%emt 0:01:35]} 39. Ke2 {[%emt 0:00:46]} Rb2+ {[%emt 0:00:56]} 40. Kf3 {[%emt 0:00:33]} g5 {[%emt 0:00:45]} 41. Rc4 {[%emt 0:01:37]} Ke5 {[%emt 0:01:46]} 42. h4 {[%emt 0:00:46]} Rb3+ {[%emt 0:00:42]} 43. Kg4 {[%emt 0:01:41]} h5+ {[%emt 0:00:24]} 44. Kxg5 {[%emt 0:01:03]} Rf3 {[%emt 0:00:24]} 45. Rc2 {[%emt 0:01:25]} Rb3 {[%emt 0:00:39]} 46. f4+ {[%emt 0:00:44]} Kd4 {[%emt 0:00:06]} 47. Kxh5 {[%emt 0:00:46]} Rxb4 {[%emt 0:00:02]} 48. Kg5 {[%emt 0:03:05]} Rb5+ {[%emt 0:00:16]} 49. f5 {[%emt 0:01:04]} Ke5 {[%emt 0:00:42]} 50. Rf2 {[%emt 0:01:18]} Rb8 {[%emt 0:00:44]} 51. Kg6 {[%emt 0:00:34]} Rg8+ {[%emt 0:00:28]} 52. Kh7 {[%emt 0:00:57]} Rf8 {[%emt 0:00:07]} 53. Kg7 {[%emt 0:00:18]} Rxf5 {[%emt 0:01:53]} 54. Rxf5+ {[%emt 0:00:11]} Kxf5 {[%emt 0:00:06]} 55. h5 {[%emt 0:00:20]} 1-0

[Event "Kuwait Championship Stage-I 2024"]
[Site "Qadsiya"]
[Date "2024.01.28"]
[Round "6.9"]
[White "Qabazard, Mohamed"]
[Black "Alsuwailem, Othman"]
[Result "1/2-1/2"]
[ECO "B54"]
[WhiteElo "1533"]
[BlackElo "1366"]
[Annotator "NA RC"]
[PlyCount "104"]
[EventDate "2024.01.22"]
[EventType "swiss"]
[EventCountry "KUW"]
[SourceTitle "playchess.com"]
[Source "ChessBase"]
[SourceQuality "1"]
[TimeControl "5400+30"]

1. e4 {[%emt 0:06:51]} c5 {[%emt 0:00:09]} 2. Nf3 {[%emt 0:00:09]} e6 {[%emt 0:00:11]} 3. d4 {[%emt 0:00:22]} cxd4 {[%emt 0:00:03]} 4. Nxd4 {[%emt 0:00:06]} a6 {[%emt 0:00:23]} 5. c4 {[%emt 0:01:51]} Nf6 {[%emt 0:00:22]} 6. Nc3 {[%emt 0:00:14]} d6 {[%emt 0:00:31]} 7. Be2 {[%emt 0:00:17]} Be7 {[%emt 0:00:50]} 8. O-O {[%emt 0:00:10]} O-O {[%emt 1:32:01]} 9. Be3 {[%emt 0:02:18]} Nc6 {[%emt 0:00:00]} 10. Nb3 {[%emt 0:02:11]} b6 {[%emt 0:00:00]} 11. f3 {[%emt 0:00:52]} Bb7 {[%emt 0:00:00]} 12. a3 {[%emt 0:03:21]} Qc7 {[%emt 0:00:00]} 13. Qe1 {[%emt 0:01:21]} Rac8 {[%emt 0:00:00]} 14. Rc1 {[%emt 0:02:21]} Nd7 {[%emt 0:00:00]} 15. Qf2 {[%emt 0:10:43]} Nc5 {[%emt 0:00:00]} 16. Nd2 {[%emt 0:01:51]} Bf6 {[%emt 0:00:00]} 17. b4 {[%emt 0:09:48]} Bxc3 {[%emt 0:00:00]} 18. Rxc3 {[%emt 0:00:10]} Nd7 {[%emt 0:00:00]} 19. Nb3 {[%emt 0:15:33]} f5 {[%emt 0:00:00]} 20. exf5 {[%emt 0:01:27]} Rxf5 {[%emt 0:00:00]} 21. Bd3 {[%emt 0:04:15]} Rf7 {[%emt 0:00:00]} 22. Bb1 {[%emt 0:04:48]} Nce5 {[%emt 0:00:00]} 23. Nd4 {[%emt 0:04:39]} Nf8 {[%emt 0:00:00]} 24. Rfc1 {[%emt 0:04:57]} Nxc4 {[%emt 0:00:00]} 25. Ba2 {[%emt 0:05:19]} b5 {[%emt 0:00:00]} 26. Bxc4 {[%emt 0:02:21]} bxc4 {[%emt 0:00:00]} 27. Rxc4 {[%emt 0:00:30]} Qd7 {[%emt 0:00:00]} 28. Rxc8 {[%emt 0:01:45]} Bxc8 {[%emt 0:00:00]} 29. Qc2 {[%emt 0:00:45]} Bb7 {[%emt 0:00:00]} 30. a4 {[%emt 0:06:02]} Ng6 {[%emt 0:00:00]} 31. b5 {[%emt 0:00:46]} axb5 {[%emt 0:00:26]} 32. axb5 {[%emt 0:00:52]} Rf8 {[%emt 0:07:12]} 33. Qc7 {[%emt 0:00:55]} Qxc7 {[%emt 0:01:38]} 34. Rxc7 {[%emt 0:00:08]} Bd5 {[%emt 0:00:04]} 35. b6 {[%emt 0:02:13]} Ne5 {[%emt 0:00:39]} 36. b7 {[%emt 0:02:44]} h6 {[%emt 0:01:29]} 37. Bf2 {[%emt 0:01:19]} Kh7 {[%emt 0:00:34]} 38. Bh4 {[%emt 0:00:30]} Rb8 {[%emt 0:01:01]} 39. Bf6 {[%emt 0:00:26]} Rxb7 {[%emt 0:00:24]} 40. Rxb7 {[%emt 0:00:30]} Bxb7 {[%emt 0:00:02]} 41. Bxe5 {[%emt 0:00:20]} dxe5 {[%emt 0:00:40]} 42. Nxe6 {[%emt 0:00:09]} Kg6 {[%emt 0:01:05]} 43. Kf2 {[%emt 0:00:16]} Kf6 {[%emt 0:00:12]} 44. Nc5 {[%emt 0:00:28]} Bc8 {[%emt 0:00:17]} 45. Ke3 {[%emt 0:00:27]} Bf5 {[%emt 0:00:53]} 46. h4 {[%emt 0:00:45]} g5 {[%emt 0:00:15]} 47. hxg5+ {[%emt 0:00:21]} hxg5 {[%emt 0:00:32]} 48. g3 {[%emt 0:00:06]} g4 {[%emt 0:01:06]} 49. f4 {[%emt 0:00:37]} exf4+ {[%emt 0:00:02]} 50. Kxf4 {[%emt 0:00:16]} Kg6 {[%emt 0:00:40]} 51. Nb3 {[%emt 0:00:16]} Bc8 {[%emt 0:02:19]} 52. Nd4 Kh5 {[%emt 0:00:30]} 1/2-1/2